[Event "25th Zadar Open 2018"]
[Site "Zadar"]
[Date "2018.12.16"]
[Round "3.10"]
[White "Nielsen, Hogni Egilstoft"]
[Black "Mohite, Ranveer"]
[Result "1/2-1/2"]
[ECO "B51"]
[WhiteElo "2400"]
[BlackElo "2236"]
[Annotator "NA"]
[PlyCount "77"]
[EventDate "2018.12.15"]
[EventType "swiss"]
[EventCountry "CRO"]
[SourceTitle "playchess.com"]
[Source "ChessBase"]
[SourceQuality "1"]
[TimeControl "40/5400+30:1800+30"]

1. e4 {[%emt 0:00:30]} c5 {[%emt 0:11:30]} 2. Nf3 {[%emt 0:00:00]} d6 {[%emt 0:00:30]} 3. Bb5+ {[%emt 0:01:00]} Nd7 {[%emt 0:00:30]} 4. O-O {[%emt 0:00:00]} a6 {[%emt 0:00:30]} 5. Bd3 {[%emt 0:00:00]} Ngf6 {[%emt 0:00:30]} 6. c3 {[%emt 0:00:30]} b5 {[%emt 0:01:30]} 7. Bc2 {[%emt 0:00:30]} Bb7 {[%emt 0:00:30]} 8. Qe2 {[%emt 0:01:30]} e6 {[%emt 0:01:30]} 9. d4 {[%emt 0:00:30] B51: Sicilian: Moscow Variation (3 Bb5+) without 3...Bd7} Be7 {[%emt 0:00:30]} 10. Nbd2 {[%emt 0:05:30] LiveBook: 23 Games} Qc7 {[%emt 0:05:30]} (10... O-O 11. e5 Nd5 12. Ne4 Qc7 13. exd6 Bxd6 14. Nxd6 Qxd6 15. dxc5 Qxc5 {½-½ (58) Kovalev,V (2648)-Grandelius,N (2652) Sharjah 2018}) 11. Bd3 {[%emt 0:01:30]} O-O {[%emt 0:04:30]} 12. a4 $146 {[%emt 0:04:30]} ({Predecessor:} 12. Re1 Rfe8 13. Nf1 cxd4 14. cxd4 e5 15. d5 Nc5 16. Ng3 Nxd3 17. Qxd3 {1-0 (42) Ramirez,A (2549)-Chandra,A (2505) Saint Louis 2017}) 12... b4 {[%emt 0:03:30]} 13. cxb4 {[%emt 0:04:30]} cxd4 {[%emt 0:04:30]} 14. Nxd4 {[%emt 0:02:30]} Ne5 {[%emt 0:02:30]} 15. b5 {[%emt 0:08:30]} Nxd3 {[%emt 0:10:30]} 16. Qxd3 {[%emt 0:00:30]} d5 {[%emt 0:03:30]} 17. exd5 {[%emt 0:04:30]} Bxd5 {[%emt 0:02:30]} 18. N2f3 {[%emt 0:08:30]} e5 {[%emt 0:13:30]} 19. Nf5 {[%emt 0:02:30]} Be4 {[%emt 0:13:53]} (19... Bd8 $1 $11 20. Qc3 Qxc3 21. bxc3 Be6) 20. Nxe7+ {[%emt 0:01:30]} Qxe7 {[%emt 0:00:02]} 21. Qa3 {[%emt 0:10:30]} Qb7 {[%emt 0:00:23]} 22. bxa6 {[%emt 0:14:30]} Rxa6 {[%emt 0:00:10]} 23. Re1 $11 {[%emt 0:00:30]} Rb6 {[%emt 0:06:10]} 24. a5 {[%emt 0:07:30]} Rb3 {[%emt 0:02:47]} 25. Qa4 {[%emt 0:00:48]} Bxf3 {[%emt 0:02:34]} 26. a6 {[%emt 0:01:12]} Qd5 {[%emt 0:02:26]} 27. gxf3 {[%emt 0:00:39]} Qxf3 {[%emt 0:00:53]} 28. Be3 {[%emt 0:03:36]} Rd3 {[%emt 0:05:26]} 29. Rad1 {[%emt 0:07:09]} e4 {[%emt 0:00:57]} 30. Rxd3 {[%emt 0:00:42]} Qg4+ {[%emt 0:00:31]} 31. Kf1 {[%emt 0:00:02]} Qh3+ {[%emt 0:00:08]} 32. Kg1 {[%emt 0:04:37]} Qg4+ {[%emt 0:00:01]} 33. Kf1 {[%emt 0:00:00]} Qh3+ {[%emt 0:00:01]} 34. Kg1 {[%emt 0:03:18]} Qg4+ {[%emt 0:00:02]} 35. Kf1 {[%emt 0:00:05]} Qh3+ {[%emt 0:01:09]} 36. Ke2 {[%emt 0:00:30]} Qf3+ {[%emt 0:00:41]} 37. Kd2 {[%emt 0:00:30]} exd3 {[%emt 0:00:34]} 38. Bc5 {[%emt 0:00:30]} Qf5 {[%emt 0:01:21]} 39. Be3 {[%emt 0:00:30]} 1/2-1/2

[Event "25th Zadar Open 2018"]
[Site "Zadar"]
[Date "2018.12.16"]
[Round "3.14"]
[White "Sokac, Marko"]
[Black "Janzelj, Tim"]
[Result "1-0"]
[ECO "C11"]
[WhiteElo "2301"]
[BlackElo "2395"]
[Annotator "NA"]
[PlyCount "73"]
[EventDate "2018.12.15"]
[EventType "swiss"]
[EventCountry "CRO"]
[SourceTitle "playchess.com"]
[Source "ChessBase"]
[SourceQuality "1"]
[TimeControl "40/5400+30:1800+30"]

1. e4 {[%emt 0:00:30]} e6 {[%emt 0:00:30]} 2. d4 {[%emt 0:00:00]} d5 {[%emt 0:00:30]} 3. Nc3 {[%emt 0:00:00]} Nf6 {[%emt 0:00:30]} 4. e5 {[%emt 0:00:30]} Nfd7 {[%emt 0:00:30]} 5. f4 {[%emt 0:00:30]} c5 {[%emt 0:00:30]} 6. Nf3 {[%emt 0:00:00]} Nc6 {[%emt 0:00:00]} 7. dxc5 {[%emt 0:06:00]} Bxc5 {[%emt 0:01:00]} 8. Bd3 {[%emt 0:00:00]} a6 {[%emt 0:05:30]} 9. a3 {[%emt 0:00:00]} b5 {[%emt 0:00:30]} 10. Bd2 {[%emt 0:00:30]} Nb6 {[%emt 0:23:30]} 11. b4 {[%emt 0:04:30]} Be7 {[%emt 0:01:30]} 12. O-O {[%emt 0:00:30]} Nc4 {[%emt 0:02:30]} 13. Qe1 {[%emt 0:09:30]} f5 {[%emt 0:17:30]} 14. exf6 {[%emt 0:09:30]} Bxf6 {[%emt 0:00:30]} 15. Ng5 {[%emt 0:00:30]} Nxd2 {[%emt 0:03:30]} 16. Qxd2 {[%emt 0:02:30]} Bd4+ {[%emt 0:01:30]} 17. Kh1 {[%emt 0:00:30]} Qf6 {[%emt 0:00:30]} 18. Nxb5 {[%emt 0:05:30]} axb5 {[%emt 0:04:30]} 19. Bxb5 {[%emt 0:00:30]} Bd7 {[%emt 0:09:30]} 20. Rae1 {[%emt 0:15:30]} Bc3 {[%emt 0:09:47]} 21. Qxd5 {[%emt 0:00:30]} Bxe1 {[%emt 0:00:10]} 22. Rxe1 {[%emt 0:00:30]} O-O-O {[%emt 0:07:11]} 23. Nxe6 {[%emt 0:03:30]} Kb7 {[%emt 0:05:56]} 24. Re5 {[%emt 0:06:30]} Rhe8 {[%emt 0:02:59]} 25. Ba6+ {[%emt 0:01:30]} Ka8 {[%emt 0:01:18]} 26. Qb5 {[%emt 0:30:36]} Rb8 {[%emt 0:00:01]} 27. Nc7+ {[%emt 0:00:20]} Ka7 {[%emt 0:00:01]} 28. Qc5+ {[%emt 0:00:29]} Rb6 {[%emt 0:00:01]} 29. Nd5 {[%emt 0:02:54]} Qd8 {[%emt 0:01:52]} 30. Rxe8 {[%emt 0:00:11]} Bxe8 {[%emt 0:00:05]} 31. Bd3 {[%emt 0:00:56]} h6 {[%emt 0:01:04]} 32. a4 {[%emt 0:00:28]} Bf7 {[%emt 0:00:25]} 33. a5 {[%emt 0:00:30]} Bxd5 {[%emt 0:00:38]} 34. axb6+ {[%emt 0:00:02]} Kb7 {[%emt 0:00:17]} 35. b5 {[%emt 0:00:25]} Nb8 {[%emt 0:00:40]} 36. c4 {[%emt 0:00:28]} Qe8 {[%emt 0:00:33]} 37. Qc7+ {[%emt 0:00:10]} 1-0

[Event "25th Zadar Open 2018"]
[Site "Zadar"]
[Date "2018.12.16"]
[Round "3.15"]
[White "Kurayan, Ruslan"]
[Black "Dixit, Nikhil"]
[Result "1/2-1/2"]
[ECO "B08"]
[WhiteElo "2391"]
[BlackElo "2292"]
[Annotator "NA"]
[PlyCount "86"]
[EventDate "2018.12.15"]
[EventType "swiss"]
[EventCountry "CRO"]
[SourceTitle "playchess.com"]
[Source "ChessBase"]
[SourceQuality "1"]
[TimeControl "40/5400+30:1800+30"]

1. e4 {[%emt 0:03:30]} g6 {[%emt 0:04:30]} 2. d4 {[%emt 0:00:00]} Bg7 {[%emt 0:00:00]} 3. Nc3 {[%emt 0:00:00]} c6 {[%emt 0:00:00]} 4. Nf3 {[%emt 0:00:30]} d6 {[%emt 0:00:30]} 5. Be3 {[%emt 0:00:00]} Nf6 {[%emt 0:00:00]} 6. h3 {[%emt 0:00:00]} O-O {[%emt 0:02:00]} 7. Qd2 {[%emt 0:03:30]} Qa5 {[%emt 0:07:30]} 8. Bd3 {[%emt 0:03:30] B08: Pirc Defence: Classical System} e5 {[%emt 0:05:30]} 9. dxe5 {[%emt 0:04:30]} dxe5 {[%emt 0:00:30]} 10. O-O {[%emt 0:00:30]} Nbd7 {[%emt 0:04:30]} 11. a3 {[%emt 0:00:30]} (11. Nd5 Qd8 12. Nxf6+ Bxf6 13. Bc4 Qe7 14. Rfd1 {0-1 (48) Khenkin,I (2565)-Onischuk,V (2610) Dresden 2017}) 11... Rd8 $146 {[%emt 0:05:30]} ({Predecessor:} 11... Re8 12. Bc4 Nf8 13. Rfd1 Be6 14. Qe2 Rad8 15. Ng5 Bxc4 16. Qxc4 Rxd1+ 17. Rxd1 {½-½ (45) Roca Rojas,A (2242)-Perez Mederos,R (2192) Santa Clara 2015}) 12. Ng5 {[%emt 0:19:30]} Nf8 {[%emt 0:03:30]} 13. Nd5 {[%emt 0:00:30]} Rxd5 {[%emt 0:02:30]} 14. exd5 {[%emt 0:00:00]} Qxd2 {[%emt 0:01:30]} 15. Bxd2 {[%emt 0:00:00]} cxd5 {[%emt 0:00:30]} 16. Bb5 {[%emt 0:12:30]} a6 {[%emt 0:07:30]} 17. Ba4 {[%emt 0:00:30]} e4 {[%emt 0:04:30]} 18. f3 {[%emt 0:00:30]} e3 {[%emt 0:10:30]} 19. Bxe3 {[%emt 0:01:30]} h6 {[%emt 0:00:00]} 20. h4 {[%emt 0:01:30]} hxg5 {[%emt 0:01:00]} 21. hxg5 {[%emt 0:00:30]} N6d7 {[%emt 0:01:30]} 22. Rad1 {[%emt 0:07:30]} Ne5 {[%emt 0:05:30]} 23. Bb3 {[%emt 0:02:30]} Be6 {[%emt 0:01:30]} 24. Bd4 {[%emt 0:07:30]} Nc4 $15 {[%emt 0:02:30]} 25. Bxc4 {[%emt 0:04:30]} dxc4 {[%emt 0:00:30]} 26. Rfe1 {[%emt 0:00:30]} Rc8 {[%emt 0:02:30]} 27. Bxg7 {[%emt 0:05:30]} Kxg7 {[%emt 0:00:30]} 28. c3 {[%emt 0:00:30]} Rc5 {[%emt 0:06:30]} 29. f4 {[%emt 0:00:30]} Rc7 {[%emt 0:01:30]} 30. Rd8 {[%emt 0:01:30]} Nd7 {[%emt 0:04:55]} 31. Kf2 {[%emt 0:00:30]} Nc5 {[%emt 0:00:23]} 32. Kf3 {[%emt 0:05:51]} Nd3 {[%emt 0:01:11]} 33. Re2 {[%emt 0:00:28]} Rc5 {[%emt 0:03:18]} 34. a4 {[%emt 0:10:34]} Rf5 {[%emt 0:03:48]} 35. g3 {[%emt 0:00:25]} Rd5 {[%emt 0:02:32]} 36. Rxd5 {[%emt 0:02:22]} Bxd5+ {[%emt 0:00:09]} 37. Ke3 {[%emt 0:00:03]} Be6 {[%emt 0:01:02]} 38. Kd4 {[%emt 0:03:15]} b6 {[%emt 0:01:08]} 39. b4 {[%emt 0:01:10]} Nc1 {[%emt 0:05:47]} 40. Re1 {[%emt 0:00:00]} Nb3+ {[%emt 0:00:00]} 41. Ke5 {[%emt 0:03:52]} Bd7 {[%emt 0:02:47]} 42. Kd5 {[%emt 0:02:30]} Bxa4 {[%emt 0:04:30]} 43. Kxc4 {[%emt 0:00:30]} a5 {[%emt 0:00:30]} 1/2-1/2

[Event "25th Zadar Open 2018"]
[Site "Zadar"]
[Date "2018.12.16"]
[Round "3.16"]
[White "Bukal, Vladimir Jr."]
[Black "Ojas Kulkarni"]
[Result "1-0"]
[ECO "D00"]
[WhiteElo "2390"]
[BlackElo "2282"]
[Annotator "NA"]
[PlyCount "83"]
[EventDate "2018.12.15"]
[EventType "swiss"]
[EventCountry "CRO"]
[SourceTitle "playchess.com"]
[Source "ChessBase"]
[SourceQuality "1"]
[TimeControl "40/5400+30:1800+30"]

1. d4 {[%emt 0:00:30]} Nf6 {[%emt 0:00:30]} 2. Nf3 {[%emt 0:00:00]} g6 {[%emt 0:00:00]} 3. Nc3 {[%emt 0:00:00]} d5 {[%emt 0:00:00]} 4. Bf4 {[%emt 0:00:30]} Bg7 {[%emt 0:00:00]} 5. e3 {[%emt 0:00:30]} O-O $11 {[%emt 0:00:00] LiveBook: 982 Games} 6. Be2 {[%emt 0:00:30]} c5 {[%emt 0:01:30]} 7. Ne5 {[%emt 0:00:00]} cxd4 {[%emt 0:01:30]} 8. exd4 {[%emt 0:00:00]} Nc6 {[%emt 0:00:30]} 9. O-O {[%emt 0:03:30]} Qb6 {[%emt 0:11:30]} 10. Nxc6 {[%emt 0:02:30]} Qxc6 {[%emt 0:04:30]} 11. Bb5 {[%emt 0:03:30]} Qb6 {[%emt 0:00:30]} 12. a4 {[%emt 0:00:30]} a6 {[%emt 0:08:30]} 13. a5 {[%emt 0:00:00]} Qd8 {[%emt 0:00:30]} 14. Be2 {[%emt 0:04:00]} Bd7 {[%emt 0:01:30]} 15. Bf3 {[%emt 0:07:30]} Bc6 {[%emt 0:00:30]} 16. Re1 {[%emt 0:00:30]} e6 {[%emt 0:01:30]} 17. Re3 {[%emt 0:11:30]} Rc8 {[%emt 0:05:30]} 18. h4 {[%emt 0:09:30]} Ne4 {[%emt 0:00:30]} 19. g3 {[%emt 0:04:30]} Nd6 {[%emt 0:09:30]} 20. b3 {[%emt 0:09:30]} Nf5 {[%emt 0:06:30]} 21. Rd3 {[%emt 0:00:30]} Qd7 {[%emt 0:00:30]} 22. Na4 {[%emt 0:01:30]} Bxa4 {[%emt 0:04:30]} 23. Rxa4 {[%emt 0:00:30]} Rfe8 {[%emt 0:01:30]} 24. Rb4 {[%emt 0:04:30]} Bf8 {[%emt 0:03:30]} 25. Rb6 {[%emt 0:00:30]} Bd6 {[%emt 0:01:30]} 26. Bxd6 {[%emt 0:01:30]} Nxd6 {[%emt 0:00:00]} 27. h5 {[%emt 0:00:30]} Rc7 {[%emt 0:01:00]} 28. Qe2 {[%emt 0:04:30]} Nc8 {[%emt 0:04:30]} 29. Rb4 {[%emt 0:00:30]} Qd6 {[%emt 0:00:30]} 30. c3 {[%emt 0:06:30]} Rxc3 {[%emt 0:14:36]} 31. Rxb7 {[%emt 0:00:00]} Rc7 {[%emt 0:00:22]} 32. Rxc7 {[%emt 0:04:00]} Qxc7 {[%emt 0:00:03]} 33. Bxd5 {[%emt 0:02:30]} Qxa5 {[%emt 0:00:33]} 34. Bc6 {[%emt 0:02:08]} Rd8 {[%emt 0:00:25]} 35. d5 {[%emt 0:00:12]} Ne7 {[%emt 0:09:18]} 36. h6 {[%emt 0:01:15]} Qa1+ {[%emt 0:04:43]} 37. Rd1 {[%emt 0:07:43]} Qf6 {[%emt 0:00:05]} 38. Bb7 {[%emt 0:00:45]} exd5 {[%emt 0:01:43]} 39. Bxa6 {[%emt 0:00:49]} d4 {[%emt 0:02:30]} 40. Re1 {[%emt 0:00:00]} Rf8 {[%emt 0:00:00]} 41. Qxe7 {[%emt 0:04:08]} Qxa6 {[%emt 0:01:42]} 42. Qe5 {[%emt 0:00:30]} 1-0

[Event "25th Zadar Open 2018"]
[Site "Zadar"]
[Date "2018.12.16"]
[Round "3.17"]
[White "Salimova, Nurgyul"]
[Black "Sahil, Tickoo"]
[Result "1-0"]
[ECO "B99"]
[WhiteElo "2377"]
[BlackElo "2224"]
[Annotator "NA"]
[PlyCount "87"]
[EventDate "2018.12.15"]
[EventType "swiss"]
[EventCountry "CRO"]
[SourceTitle "playchess.com"]
[Source "ChessBase"]
[SourceQuality "1"]
[TimeControl "40/5400+30:1800+30"]

1. e4 {[%emt 0:00:30]} c5 {[%emt 0:00:30]} 2. Nf3 {[%emt 0:00:00]} d6 {[%emt 0:00:00]} 3. d4 {[%emt 0:00:00]} cxd4 {[%emt 0:00:00]} 4. Nxd4 {[%emt 0:00:30]} Nf6 {[%emt 0:00:30]} 5. Nc3 {[%emt 0:00:00]} a6 {[%emt 0:00:00]} 6. Bg5 {[%emt 0:00:00]} e6 {[%emt 0:00:00]} 7. f4 {[%emt 0:00:30]} Be7 {[%emt 0:00:30]} 8. Qf3 {[%emt 0:00:30]} Qc7 {[%emt 0:00:30]} 9. O-O-O {[%emt 0:01:30]} Nbd7 {[%emt 0:01:30]} 10. g4 {[%emt 0:08:30]} b5 {[%emt 0:03:30]} 11. Bxf6 {[%emt 0:00:30]} Nxf6 {[%emt 0:00:30]} 12. g5 {[%emt 0:00:00]} Nd7 {[%emt 0:00:00]} 13. f5 {[%emt 0:01:00]} O-O {[%emt 0:01:00]} 14. fxe6 {[%emt 0:03:30]} fxe6 {[%emt 0:00:30]} 15. Nxe6 {[%emt 0:03:30]} Rxf3 {[%emt 0:00:30]} 16. Nxc7 {[%emt 0:00:30]} Bxg5+ {[%emt 0:01:30]} 17. Kb1 {[%emt 0:00:00]} Ra7 {[%emt 0:02:30]} 18. Ne8 {[%emt 0:03:00]} Ne5 {[%emt 0:21:30]} 19. Nxd6 {[%emt 0:01:30]} Be6 {[%emt 0:05:30]} 20. a4 {[%emt 0:30:30]} b4 {[%emt 0:14:30]} 21. Nd5 {[%emt 0:03:30]} b3 {[%emt 0:11:30]} 22. cxb3 {[%emt 0:06:30]} Rxb3 {[%emt 0:04:30]} 23. Be2 {[%emt 0:15:30]} Rd7 {[%emt 0:10:52]} 24. h4 {[%emt 0:08:24]} Bd8 {[%emt 0:14:42]} 25. Nf5 {[%emt 0:10:57]} Rxd5 {[%emt 0:01:49]} 26. Rxd5 {[%emt 0:00:43]} Bxd5 {[%emt 0:00:10]} 27. exd5 {[%emt 0:00:05]} g6 {[%emt 0:04:22]} 28. Nd4 {[%emt 0:00:59]} Rb6 {[%emt 0:00:12]} 29. Ne6 {[%emt 0:00:34]} Bf6 {[%emt 0:00:31]} 30. Nc5 {[%emt 0:00:33]} Bg7 {[%emt 0:00:45]} 31. Nxa6 {[%emt 0:00:42]} Nd7 {[%emt 0:00:28]} 32. Bb5 {[%emt 0:00:14]} Nf6 {[%emt 0:00:35]} 33. Rd1 {[%emt 0:00:13]} Ne4 {[%emt 0:00:25]} 34. Nc7 {[%emt 0:01:17]} Nd6 {[%emt 0:00:23]} 35. Rc1 {[%emt 0:00:41]} Bf6 {[%emt 0:00:43]} 36. Rc6 {[%emt 0:00:20]} Rxc6 {[%emt 0:00:30]} 37. dxc6 {[%emt 0:00:07]} Bxh4 {[%emt 0:00:14]} 38. Nd5 {[%emt 0:00:26]} Kf7 {[%emt 0:00:39]} 39. c7 {[%emt 0:00:49]} Bf2 {[%emt 0:00:33]} 40. Bd7 {[%emt 0:00:00]} h5 {[%emt 0:00:00]} 41. b4 {[%emt 0:04:56]} g5 {[%emt 0:04:37]} 42. b5 {[%emt 0:00:30]} g4 {[%emt 0:02:30]} 43. b6 {[%emt 0:01:30]} g3 {[%emt 0:16:22]} 44. Bh3 {[%emt 0:00:00]} 1-0

[Event "25th Zadar Open 2018"]
[Site "Zadar"]
[Date "2018.12.16"]
[Round "3.18"]
[White "Zelic, Mladen"]
[Black "Bilobrk, Franjo"]
[Result "1/2-1/2"]
[ECO "C11"]
[WhiteElo "2274"]
[BlackElo "2364"]
[Annotator "NA"]
[PlyCount "22"]
[EventDate "2018.12.15"]
[EventType "swiss"]
[EventCountry "CRO"]
[SourceTitle "playchess.com"]
[Source "ChessBase"]
[SourceQuality "1"]
[TimeControl "40/5400+30:1800+30"]

1. e4 {[%emt 0:00:30]} e6 {[%emt 0:00:30]} 2. d4 {[%emt 0:00:00]} d5 {[%emt 0:00:00]} 3. Nc3 {[%emt 0:00:00]} Nf6 {[%emt 0:00:00]} 4. e5 {[%emt 0:00:30]} Nfd7 {[%emt 0:00:30]} 5. f4 {[%emt 0:00:30]} c5 {[%emt 0:00:00]} 6. Nf3 {[%emt 0:00:00]} Nc6 {[%emt 0:00:00]} 7. Be3 {[%emt 0:00:00]} Qb6 {[%emt 0:00:00]} 8. Na4 {[%emt 0:00:30]} Qa5+ {[%emt 0:00:00]} 9. Nc3 {[%emt 0:00:30]} Qb6 {[%emt 0:00:30]} 10. Na4 {[%emt 0:00:00]} Qa5+ {[%emt 0:00:00]} 11. Nc3 {[%emt 0:00:00]} Qb6 {[%emt 0:00:00]} 1/2-1/2

[Event "25th Zadar Open 2018"]
[Site "Zadar"]
[Date "2018.12.16"]
[Round "3.19"]
[White "Bosnjak, Petar"]
[Black "Sutkovic, Damir"]
[Result "0-1"]
[ECO "B42"]
[WhiteElo "2255"]
[BlackElo "2345"]
[Annotator "NA"]
[PlyCount "114"]
[EventDate "2018.12.15"]
[EventType "swiss"]
[EventCountry "CRO"]
[SourceTitle "playchess.com"]
[Source "ChessBase"]
[SourceQuality "1"]
[TimeControl "40/5400+30:1800+30"]

1. e4 {[%emt 0:00:30]} c5 {[%emt 0:01:30]} 2. Nf3 {[%emt 0:00:00]} e6 {[%emt 0:00:00]} 3. d4 {[%emt 0:00:00]} cxd4 {[%emt 0:00:00]} 4. Nxd4 {[%emt 0:00:00]} a6 {[%emt 0:00:00]} 5. Bd3 {[%emt 0:00:00]} Bc5 {[%emt 0:00:00]} 6. Nb3 {[%emt 0:00:00]} Be7 {[%emt 0:00:30]} 7. Qg4 {[%emt 0:01:00]} Bf6 {[%emt 0:01:30]} 8. Nc3 {[%emt 0:01:30]} d6 {[%emt 0:00:30]} 9. Bd2 {[%emt 0:06:30]} Nc6 {[%emt 0:01:30]} 10. O-O-O {[%emt 0:02:30]} Nge7 {[%emt 0:01:30]} 11. h4 {[%emt 0:04:30]} O-O {[%emt 0:20:30]} 12. Bg5 {[%emt 0:19:30]} Bxc3 {[%emt 0:03:30]} 13. bxc3 {[%emt 0:00:30]} Ne5 {[%emt 0:01:30]} 14. Qg3 {[%emt 0:00:30]} f6 {[%emt 0:00:30]} 15. Bh6 {[%emt 0:10:30]} Rf7 {[%emt 0:00:30]} 16. Be2 {[%emt 0:05:30]} b5 {[%emt 0:05:30]} 17. Be3 {[%emt 0:23:30]} Qc7 {[%emt 0:07:30]} 18. f4 {[%emt 0:04:07]} Nc4 {[%emt 0:02:30]} 19. Bh5 {[%emt 0:00:55]} Rf8 {[%emt 0:05:30]} 20. Bg4 {[%emt 0:00:05]} e5 {[%emt 0:10:30]} 21. Rhe1 {[%emt 0:00:33]} Bxg4 {[%emt 0:06:30]} 22. Qxg4 {[%emt 0:00:05]} f5 {[%emt 0:00:30]} 23. Qh3 {[%emt 0:02:34]} Nxe3 {[%emt 0:12:13]} 24. Qxe3 {[%emt 0:01:19]} fxe4 {[%emt 0:00:16]} 25. fxe5 {[%emt 0:01:57]} d5 {[%emt 0:00:45]} 26. Qd4 {[%emt 0:04:03]} Rac8 {[%emt 0:02:09]} 27. Kb2 {[%emt 0:01:26]} Rf5 {[%emt 0:05:03]} 28. e6 {[%emt 0:02:41]} Rf6 {[%emt 0:01:49]} 29. Qe3 {[%emt 0:01:25]} Rxe6 {[%emt 0:01:15]} 30. Nd4 {[%emt 0:00:07]} Rg6 {[%emt 0:00:29]} 31. Qd2 {[%emt 0:02:00]} Rg3 {[%emt 0:07:20]} 32. Re3 {[%emt 0:00:06]} Rxe3 {[%emt 0:00:42]} 33. Qxe3 {[%emt 0:00:03]} Qe5 {[%emt 0:01:35]} 34. Qh3 {[%emt 0:03:38]} Rd8 {[%emt 0:00:43]} 35. a3 {[%emt 0:01:23]} h6 {[%emt 0:00:15]} 36. Qg4 {[%emt 0:00:53]} Rd6 {[%emt 0:00:53]} 37. Rf1 {[%emt 0:01:34]} Rf6 {[%emt 0:00:27]} 38. Rxf6 {[%emt 0:00:03]} Qxf6 {[%emt 0:00:05]} 39. Qg3 {[%emt 0:00:00]} Kh7 {[%emt 0:00:00]} 40. Qg4 {[%emt 0:00:00]} Ng6 {[%emt 0:00:00]} 41. Qd7 {[%emt 0:13:24]} Ne5 {[%emt 0:19:27]} 42. Qxd5 {[%emt 0:05:44]} Nc4+ {[%emt 0:00:07]} 43. Ka2 {[%emt 0:00:34]} Qe7 {[%emt 0:00:36]} 44. Kb1 {[%emt 0:00:07]} Nxa3+ {[%emt 0:01:55]} 45. Kc1 {[%emt 0:02:08]} Nc4 {[%emt 0:00:22]} 46. Qf5+ {[%emt 0:03:03]} Kg8 {[%emt 0:02:36]} 47. Qc8+ {[%emt 0:01:58]} Qf8 {[%emt 0:00:21]} 48. Qxf8+ {[%emt 0:01:54]} Kxf8 {[%emt 0:00:04]} 49. Ne6+ {[%emt 0:00:02]} Kf7 {[%emt 0:00:34]} 50. Nc7 {[%emt 0:00:27]} a5 {[%emt 0:01:49]} 51. Nxb5 {[%emt 0:00:09]} Kg6 {[%emt 0:02:43]} 52. Nd4 {[%emt 0:01:33]} Kh5 {[%emt 0:00:59]} 53. Nf5 {[%emt 0:00:00]} Kg4 {[%emt 0:00:45]} 54. Nxg7 {[%emt 0:00:05]} a4 {[%emt 0:01:42]} 55. Ne6 {[%emt 0:00:14]} a3 {[%emt 0:00:12]} 56. Kb1 {[%emt 0:00:16]} Kxh4 {[%emt 0:00:25]} 57. Nc5 {[%emt 0:00:44]} e3 {[%emt 0:00:15]} 0-1